bitfinex-derivatives/quotes_BNBF0:USTF0_20251002
["timestamp","ask_amount","ask_price","bid_price","bid_amount"]
[1759398132339,0.53694918,1039.8,1039.2,1.29586914]
[1759398132539,0.86197612,1040.4,1039.2,1.29586914]
[1759398132743,0.53697112,1040.3,1039.2,1.29586914]
[1759398132937,0.53697112,1040.2,1039.2,1.29586914]
[1759398133241,0.53697112,1040.1,1039.2,1.29586914]
[1759398133441,0.53697112,1040.0,1039.2,1.29586914]
[1759398133641,0.53697112,1039.9,1039.2,1.29586914]
[1759398133842,0.53697112,1039.8,1039.2,1.29586914]
[1759398134137,0.86197612,1040.5,1039.2,1.29586914]
[1759398134339,0.53685941,1040.4,1039.2,1.29586914]
[1759398134542,0.53685941,1040.3,1039.2,1.29586914]
[1759398134738,0.53685941,1040.2,1039.2,1.29586914]
[1759398134943,0.53685941,1040.1,1039.2,1.29586914]
[1759398135143,0.53685941,1040.0,1039.2,1.29586914]
[1759398135342,0.53685941,1039.9,1039.2,1.29586914]
[1759398135544,0.53685941,1039.8,1039.2,1.29586914]
[1759398135849,0.86197612,1040.5,1039.2,1.29586914]
[1759398136143,0.53692926,1040.4,1039.2,1.29586914]
[1759398136343,0.53692926,1040.3,1039.2,1.29586914]
[1759398136643,0.53692926,1040.2,1039.2,1.29586914]
[1759398136941,0.53692926,1040.1,1039.2,1.29586914]
[1759398137144,0.53692926,1040.0,1039.2,1.29586914]
[1759398137341,0.53692926,1039.9,1039.2,1.29586914]
[1759398137540,0.53692926,1039.8,1039.2,1.29586914]
[1759398137747,0.86197612,1040.5,1039.2,1.29586914]
[1759398137945,0.53692733,1040.4,1039.2,1.29586914]
[1759398138141,0.53692733,1040.3,1039.2,1.29586914]
[1759398138445,0.53692733,1040.2,1039.2,1.29586914]
[1759398138744,0.53692733,1040.1,1039.2,1.29586914]
[1759398138946,0.53692733,1040.0,1039.2,1.29586914]
[1759398139244,0.53692733,1039.9,1039.2,1.29586914]
[1759398139442,0.53692733,1039.8,1039.2,1.29586914]
[1759398139643,0.86197612,1040.6,1039.2,1.29586914]
[1759398139843,0.53689588,1040.5,1039.2,1.29586914]
[1759398140041,0.53689588,1040.4,1039.2,1.29586914]
[1759398140244,0.53689588,1040.3,1039.2,1.29586914]
[1759398140442,0.53689588,1040.2,1039.2,1.29586914]
[1759398140746,0.53689588,1040.1,1039.2,1.29586914]
[1759398140946,0.53689588,1040.0,1039.2,1.29586914]
[1759398141245,0.53689588,1039.9,1039.2,1.29586914]
[1759398141443,0.86197612,1040.6,1039.2,1.29586914]
[1759398141642,0.53674127,1040.5,1039.2,1.29586914]
[1759398141844,0.53674127,1040.4,1039.2,1.29586914]
[1759398142144,0.53674127,1040.3,1039.2,1.29586914]
[1759398142344,0.53674127,1040.2,1039.2,1.29586914]
[1759398142542,0.53674127,1040.1,1039.2,1.29586914]
[1759398142740,0.53674127,1040.0,1039.2,1.29586914]
[1759398143048,0.53674127,1039.9,1039.2,1.29586914]
[1759398143342,0.5367238,1039.8,1039.2,1.29586914]
[1759398143547,0.86197612,1040.9,1039.2,1.29586914]
[1759398143744,0.53672933,1040.8,1039.2,1.29586914]
[1759398143945,0.53672933,1040.7,1039.2,1.29586914]
[1759398144145,0.53672933,1040.6,1039.2,1.29586914]
[1759398144442,0.53672933,1040.5,1039.2,1.29586914]
[1759398144745,0.53672933,1040.4,1039.2,1.29586914]
[1759398144947,0.53672933,1040.3,1039.2,1.29586914]
[1759398145146,0.53672933,1040.2,1039.2,1.29586914]
[1759398145347,0.53672933,1040.1,1039.2,1.29586914]
[1759398145546,0.53672933,1040.0,1039.2,1.29586914]
[1759398145745,0.53672933,1039.9,1039.2,1.29586914]
[1759398145948,0.53672933,1039.8,1039.2,1.29586914]
[1759398146147,0.86197612,1040.9,1039.2,1.29586914]
[1759398146344,0.53653889,1040.8,1039.2,1.29586914]
[1759398146548,0.53653889,1040.7,1039.2,1.29586914]
[1759398146743,0.53653889,1040.6,1039.2,1.29586914]
[1759398146944,0.53653889,1040.5,1039.2,1.29586914]
[1759398147248,0.53653889,1040.4,1039.2,1.29586914]
[1759398147444,0.53653889,1040.3,1039.2,1.29586914]
[1759398147649,0.53653889,1040.2,1039.2,1.29586914]
[1759398147949,0.53653889,1040.1,1039.2,1.29586914]
[1759398148148,0.53653889,1040.0,1039.2,1.29586914]
[1759398148346,0.53653889,1039.9,1039.2,1.29586914]
[1759398148546,0.53653889,1039.8,1039.2,1.29586914]
[1759398148745,0.86197612,1040.5,1039.2,1.29586914]
[1759398149049,0.53640997,1040.4,1039.2,1.29586914]
[1759398149245,0.53640997,1040.3,1039.2,1.29586914]
[1759398149450,0.53640997,1040.2,1039.2,1.29586914]
[1759398149745,0.53640997,1040.1,1039.2,1.29586914]
[1759398149946,0.53640997,1040.0,1039.2,1.29586914]
[1759398150143,0.53640997,1039.9,1039.2,1.29586914]
[1759398150348,0.53640997,1039.8,1039.2,1.29586914]
[1759398150547,0.86197612,1040.5,1039.2,1.29586914]
[1759398150751,0.53629016,1040.4,1039.2,1.29586914]
[1759398151045,0.53629016,1040.3,1039.2,1.29586914]
[1759398151251,0.53629016,1040.2,1039.2,1.29586914]
[1759398151446,0.53629016,1040.1,1039.2,1.29586914]
[1759398151648,0.53629016,1040.0,1039.2,1.29586914]
[1759398151947,0.53629016,1039.9,1039.2,1.29586914]
[1759398152146,0.53629016,1039.8,1039.2,1.29586914]
[1759398152349,0.86197612,1040.5,1039.2,1.29586914]
[1759398152553,0.53619118,1040.4,1039.2,1.29586914]
[1759398152848,0.53619118,1040.3,1039.2,1.29586914]
[1759398153047,0.53619118,1040.2,1039.2,1.29586914]
[1759398153251,0.53619118,1040.1,1039.2,1.29586914]
[1759398153452,0.53619118,1040.0,1039.2,1.29586914]
[1759398153650,0.53619118,1039.9,1039.2,1.29586914]
[1759398153849,0.53619118,1039.8,1039.2,1.29586914]
[1759398154051,0.86197612,1040.5,1039.2,1.29586914]
[1759398154249,0.53614405,1040.4,1039.2,1.29586914]
[1759398154451,0.53614405,1040.3,1039.2,1.29586914]
[1759398154653,0.53614405,1040.2,1039.2,1.29586914]
[1759398154853,0.53614405,1040.1,1039.2,1.29586914]
[1759398155154,0.53614405,1040.0,1039.2,1.29586914]
[1759398155454,0.53614405,1039.9,1039.2,1.29586914]
[1759398155754,0.53614405,1039.8,1039.2,1.29586914]
[1759398155950,0.86197612,1040.5,1039.2,1.29586914]
[1759398156251,0.53606371,1040.4,1039.2,1.29586914]
[1759398156456,0.53606371,1040.3,1039.2,1.29586914]
[1759398156657,0.53606371,1040.2,1039.2,1.29586914]
[1759398156856,0.53606371,1040.1,1039.2,1.29586914]
[1759398157056,0.53606371,1040.0,1039.2,1.29586914]
[1759398157356,0.53606371,1039.9,1039.2,1.29586914]
[1759398157552,0.53606371,1039.8,1039.2,1.29586914]
[1759398157753,0.86197612,1040.6,1039.2,1.29586914]
[1759398158055,0.53600453,1040.5,1039.2,1.29586914]
[1759398158253,0.53600453,1040.4,1039.2,1.29586914]
[1759398158451,0.53600453,1040.3,1039.2,1.29586914]
[1759398158654,0.53600453,1040.2,1039.2,1.29586914]
[1759398158952,0.53600453,1040.1,1039.2,1.29586914]
[1759398159151,0.53600453,1040.0,1039.2,1.29586914]
[1759398159354,0.53600453,1039.9,1039.2,1.29586914]
[1759398159657,0.53600453,1039.8,1039.2,1.29586914]
[1759398159854,0.86197612,1040.5,1039.2,1.29586914]
[1759398160054,0.53596823,1040.4,1039.2,1.29586914]
[1759398160254,0.53596823,1040.3,1039.2,1.29586914]
[1759398160457,0.53596823,1040.2,1039.2,1.29586914]
[1759398160658,0.53596823,1040.1,1039.2,1.29586914]
[1759398160957,0.53596823,1040.0,1039.2,1.29586914]
[1759398161253,0.53596823,1039.9,1039.2,1.29586914]
[1759398161457,0.53596823,1039.8,1039.2,1.29586914]
[1759398161754,0.86197612,1040.6,1039.2,1.29586914]
[1759398161957,0.53594887,1040.5,1039.2,1.29586914]
[1759398162157,0.53594887,1040.4,1039.2,1.29586914]
[1759398162359,0.53594887,1040.3,1039.2,1.29586914]
[1759398162558,0.53594887,1040.2,1039.2,1.29586914]
[1759398162760,0.53594887,1040.1,1039.2,1.29586914]
[1759398162956,0.53594887,1040.0,1039.2,1.29586914]
[1759398163260,0.53594887,1039.9,1039.2,1.29586914]
[1759398163457,0.53594887,1039.8,1039.2,1.29586914]
[1759398163661,0.86197612,1040.6,1039.2,1.29586914]
[1759398163863,0.53562747,1040.5,1039.2,1.29586914]
[1759398164162,0.53562747,1040.4,1039.2,1.29586914]
[1759398164459,0.53562747,1040.3,1039.2,1.29586914]
[1759398164761,0.53562747,1040.2,1039.2,1.29586914]
[1759398164960,0.53562747,1040.1,1039.2,1.29586914]
[1759398165163,0.53562747,1040.0,1039.2,1.29586914]
[1759398165463,0.53562747,1039.9,1039.2,1.29586914]
[1759398165664,0.53562747,1039.8,1039.2,1.29586914]
[1759398165861,0.86197612,1040.6,1039.2,1.29586914]
[1759398166067,0.53564376,1040.5,1039.2,1.29586914]
[1759398166259,0.53564376,1040.4,1039.2,1.29586914]
[1759398166460,0.53564376,1040.3,1039.2,1.29586914]
[1759398166666,0.53564376,1040.2,1039.2,1.29586914]
[1759398166864,0.53564376,1040.1,1039.2,1.29586914]
[1759398167066,0.53564376,1040.0,1039.2,1.29586914]
[1759398167267,0.53564376,1039.9,1039.2,1.29586914]
[1759398167468,0.53564376,1039.8,1039.2,1.29586914]
[1759398167664,0.86197612,1040.6,1039.2,1.29586914]
[1759398167869,0.53568686,1040.5,1039.2,1.29586914]
[1759398168067,0.53568686,1040.4,1039.2,1.29586914]
[1759398168270,0.53568686,1040.3,1039.2,1.29586914]
[1759398168570,0.53568686,1040.2,1039.2,1.29586914]
[1759398168769,0.53568686,1040.1,1039.2,1.29586914]
[1759398168967,0.53568686,1040.0,1039.2,1.29586914]
[1759398169172,0.53568686,1039.9,1039.2,1.29586914]
[1759398169369,0.53568686,1039.8,1039.2,1.29586914]
[1759398169674,0.86197612,1040.7,1039.2,1.29586914]
[1759398169971,1.39772104,1040.6,1039.2,1.29586914]
[1759398170274,0.53574492,1040.5,1039.2,1.29586914]
[1759398170472,0.53574492,1040.4,1039.2,1.29586914]
[1759398170770,0.53574492,1040.3,1039.2,1.29586914]
[1759398170968,0.53574492,1040.2,1039.2,1.29586914]
[1759398171169,0.86197612,1040.6,1039.2,1.29586914]
[1759398171170,0.53574492,1040.1,1039.2,1.29586914]
[1759398171369,0.53574492,1040.0,1039.2,1.29586914]
[1759398171573,0.53574492,1039.9,1039.2,1.29586914]
[1759398171773,0.53574492,1039.8,1039.2,1.29586914]
[1759398172070,0.53574492,1039.7,1039.2,1.29586914]
[1759398172274,0.86197612,1040.3,1039.2,1.29586914]
[1759398172569,0.53587594,1040.2,1039.2,1.29586914]
[1759398172772,0.53587594,1040.1,1039.2,1.29586914]
[1759398172974,0.53587594,1040.0,1039.2,1.29586914]
[1759398173270,0.53587594,1039.9,1039.2,1.29586914]
[1759398173469,0.53587594,1039.8,1039.2,1.29586914]
[1759398173669,0.53587594,1039.7,1039.2,1.29586914]
[1759398173874,0.86197612,1040.6,1039.2,1.29586914]
[1759398174070,0.5359059,1040.5,1039.2,1.29586914]
[1759398174270,0.5359059,1040.4,1039.2,1.29586914]
[1759398174473,0.5359059,1040.3,1039.2,1.29586914]
[1759398174670,0.5359059,1040.2,1039.2,1.29586914]
[1759398174969,0.5359059,1040.1,1039.2,1.29586914]
[1759398175175,0.5359059,1040.0,1039.2,1.29586914]
[1759398175372,0.5359059,1039.9,1039.2,1.29586914]
[1759398175572,0.5359059,1039.8,1039.2,1.29586914]
[1759398175776,0.86197612,1040.4,1039.2,1.29586914]
[1759398175972,0.53597381,1040.3,1039.2,1.29586914]
[1759398176174,0.53597381,1040.2,1039.2,1.29586914]
[1759398176372,0.53597381,1040.1,1039.2,1.29586914]
[1759398176570,0.53597381,1040.0,1039.2,1.29586914]
[1759398176772,0.53597381,1039.9,1039.2,1.29586914]
[1759398176974,0.53597381,1039.8,1039.2,1.29586914]
[1759398177275,0.86197612,1040.6,1039.2,1.29586914]
[1759398177475,0.53611083,1040.5,1039.2,1.29586914]
[1759398177675,0.53611083,1040.4,1039.2,1.29586914]
[1759398177876,0.53611083,1040.3,1039.2,1.29586914]
[1759398178075,0.53611083,1040.2,1039.2,1.29586914]
[1759398178376,0.53611083,1040.1,1039.2,1.29586914]
[1759398178574,0.53611083,1040.0,1039.2,1.29586914]
[1759398178774,0.53611083,1039.9,1039.2,1.29586914]
[1759398178974,0.86197612,1040.6,1039.2,1.29586914]
[1759398179176,0.53623956,1040.5,1039.2,1.29586914]
[1759398179374,0.53623956,1040.4,1039.2,1.29586914]
[1759398179573,0.53623956,1040.3,1039.2,1.29586914]
[1759398179772,0.53623956,1040.2,1039.2,1.29586914]
[1759398180076,0.53623956,1040.1,1039.2,1.29586914]
[1759398180272,0.53623956,1040.0,1039.2,1.29586914]
[1759398180476,0.53623956,1039.9,1039.2,1.29586914]
[1759398180672,0.86197612,1040.6,1039.2,1.29586914]
[1759398180873,0.53637813,1040.5,1039.2,1.29586914]
[1759398181074,0.53637813,1040.4,1039.2,1.29586914]
[1759398181374,0.53637813,1040.3,1039.2,1.29586914]
[1759398181577,0.53637813,1040.2,1039.2,1.29586914]
[1759398181777,0.53637813,1040.1,1039.2,1.29586914]
[1759398182079,0.53637813,1040.0,1039.2,1.29586914]
[1759398182277,0.53637813,1039.9,1039.2,1.29586914]
[1759398182573,0.86197612,1040.6,1039.2,1.29586914]
[1759398182874,0.5366892,1040.5,1039.2,1.29586914]
[1759398183073,0.5366892,1040.4,1039.2,1.29586914]
[1759398183277,0.5366892,1040.3,1039.2,1.29586914]
[1759398183476,0.5366892,1040.2,1039.2,1.29586914]
[1759398183674,0.5366892,1040.1,1039.2,1.29586914]
[1759398183875,0.5366892,1040.0,1039.2,1.29586914]
[1759398184077,0.5366892,1039.9,1039.2,1.29586914]
[1759398184376,0.5366892,1039.8,1039.2,1.29586914]
[1759398184577,0.86197612,1040.6,1039.2,1.29586914]
[1759398184773,0.53707451,1040.5,1039.2,1.29586914]
[1759398184978,0.53707451,1040.4,1039.2,1.29586914]
[1759398185177,0.53707451,1040.3,1039.2,1.29586914]
[1759398185377,0.53707451,1040.2,1039.2,1.29586914]
[1759398185576,0.53707451,1040.1,1039.2,1.29586914]
[1759398185775,0.86197612,1040.6,1039.2,1.29586914]
[1759398185776,0.53707451,1040.0,1039.2,1.29586914]
[1759398185975,0.53707451,1039.9,1039.2,1.29586914]
[1759398186178,0.53707451,1039.8,1039.2,1.29586914]
[1759398186378,0.86197612,1040.7,1039.2,1.29586914]
[1759398186680,0.5376051,1040.6,1039.2,1.29586914]
[1759398186879,0.5376051,1040.5,1039.2,1.29586914]
[1759398187080,0.5376051,1040.4,1039.2,1.29586914]
[1759398187280,0.5376051,1040.3,1039.2,1.29586914]
[1759398187476,0.5376051,1040.2,1039.2,1.29586914]
[1759398187678,0.5376051,1040.1,1039.2,1.29586914]
[1759398187884,0.5376051,1040.0,1039.2,1.29586914]
[1759398188080,0.5376051,1039.9,1039.2,1.29586914]
[1759398188280,0.5376051,1039.8,1039.2,1.29586914]
[1759398188576,0.5376051,1039.7,1039.2,1.29586914]
[1759398188776,0.5376051,1039.6,1039.2,1.29586914]
[1759398189079,0.5376051,1039.5,1039.2,1.29586914]
[1759398189279,0.86197612,1040.1,1039.2,1.29586914]
[1759398189579,0.53794008,1040.0,1039.2,1.29586914]
[1759398189775,0.53794008,1039.9,1039.2,1.29586914]
[1759398189980,0.53794008,1039.8,1039.2,1.29586914]
[1759398190181,0.53794008,1039.7,1039.2,1.29586914]
[1759398190380,0.53794008,1039.6,1039.2,1.29586914]
[1759398190580,0.86197612,1040.2,1039.2,1.29586914]
[1759398190779,0.53793356,1040.1,1039.2,1.29586914]
[1759398190982,0.86197612,1040.2,1039.2,1.29586914]
[1759398190983,0.53793356,1040.0,1039.2,1.29586914]
[1759398191183,0.53793356,1039.9,1039.2,1.29586914]
[1759398191381,0.53793356,1039.8,1039.2,1.29586914]
[1759398191684,0.53793356,1039.7,1039.2,1.29586914]
[1759398191886,0.86197612,1040.5,1039.2,1.29586914]
[1759398192081,0.53791634,1040.4,1039.2,1.29586914]
[1759398192285,0.53791634,1040.3,1039.2,1.29586914]
[1759398192484,0.53791634,1040.2,1039.2,1.29586914]
[1759398192683,0.53791634,1040.1,1039.2,1.29586914]
[1759398192883,0.53791634,1040.0,1039.2,1.29586914]
[1759398193086,0.53791634,1039.9,1039.2,1.29586914]
[1759398193286,0.53791634,1039.8,1039.2,1.29586914]
[1759398193483,0.86197612,1040.6,1039.2,1.29586914]
[1759398193684,0.53608543,1040.5,1039.2,1.29586914]
[1759398193990,1.39806155,1040.4,1039.2,1.29586914]
[1759398194284,0.53608543,1040.3,1039.2,1.29586914]
[1759398194484,0.53608543,1040.2,1039.2,1.29586914]
[1759398194688,0.53608543,1040.1,1039.2,1.29586914]
[1759398194984,0.53608543,1040.0,1039.2,1.29586914]
[1759398195188,0.53608543,1039.9,1039.2,1.29586914]
[1759398195388,0.53608543,1039.8,1039.2,1.29586914]
[1759398195585,0.86197612,1040.4,1039.2,1.29586914]
[1759398195788,0.53606456,1040.3,1039.2,1.29586914]
[1759398196088,0.53606456,1040.2,1039.2,1.29586914]
[1759398196289,0.53606456,1040.1,1039.2,1.29586914]
[1759398196488,0.53606456,1040.0,1039.2,1.29586914]
[1759398196784,0.53606456,1039.9,1039.2,1.29586914]
[1759398196989,0.53606456,1039.8,1039.2,1.29586914]
[1759398197284,0.86197612,1040.4,1039.2,1.29586914]
[1759398197490,0.53605053,1040.3,1039.2,1.29586914]
[1759398197685,0.53605053,1040.2,1039.2,1.29586914]
[1759398197889,0.53605053,1040.1,1039.2,1.29586914]
[1759398198090,0.53605053,1040.0,1039.2,1.29586914]
[1759398198286,0.53605053,1039.9,1039.2,1.29586914]
[1759398198485,0.53605053,1039.8,1039.2,1.29586914]
[1759398198789,0.86197612,1040.5,1039.2,1.29586914]
[1759398198987,0.53604221,1040.4,1039.2,1.29586914]
[1759398199189,0.53604221,1040.3,1039.2,1.29586914]
[1759398199387,0.53604221,1040.2,1039.2,1.29586914]
[1759398199591,0.53604221,1040.1,1039.2,1.29586914]
[1759398199788,0.53604221,1040.0,1039.2,1.29586914]
[1759398199991,0.53604221,1039.9,1039.2,1.29586914]
[1759398200189,0.53604221,1039.8,1039.2,1.29586914]
[1759398200393,0.86197612,1040.5,1039.2,1.29586914]
[1759398200692,0.53602808,1040.4,1039.2,1.29586914]
[1759398200992,0.53602808,1040.3,1039.2,1.29586914]
[1759398201288,0.86197612,1040.5,1039.2,1.29586914]
[1759398201289,0.53602808,1040.2,1039.2,1.29586914]
[1759398201489,0.53602808,1040.1,1039.2,1.29586914]
[1759398201689,0.53602808,1040.0,1039.2,1.29586914]
[1759398201892,0.53602808,1039.9,1039.2,1.29586914]
[1759398202089,0.53602808,1039.8,1039.2,1.29586914]
[1759398202291,0.86197612,1040.6,1039.2,1.29586914]
[1759398202490,0.53606524,1040.5,1039.2,1.29586914]
[1759398202690,0.53606524,1040.4,1039.2,1.29586914]
[1759398202891,0.53606524,1040.3,1039.2,1.29586914]
[1759398203191,0.53606524,1040.2,1039.2,1.29586914]
[1759398203394,0.53606524,1040.1,1039.2,1.29586914]
[1759398203696,0.53606524,1040.0,1039.2,1.29586914]
[1759398203893,0.53606524,1039.9,1039.2,1.29586914]
[1759398204094,0.53606524,1039.8,1039.2,1.29586914]
[1759398204291,0.86197612,1040.6,1039.2,1.29586914]
[1759398204495,0.53607346,1040.5,1039.2,1.29586914]
[1759398204690,0.53607346,1040.4,1039.2,1.29586914]
[1759398204994,0.53607346,1040.3,1039.2,1.29586914]
[1759398205294,0.53607346,1040.2,1039.2,1.29586914]
[1759398205492,0.53607346,1040.1,1039.2,1.29586914]
[1759398205690,0.53607346,1040.0,1039.2,1.29586914]
[1759398205992,0.53607346,1039.9,1039.2,1.29586914]
[1759398206191,0.53607346,1039.8,1039.2,1.29586914]
[1759398206395,0.53607346,1039.7,1039.2,1.29586914]
[1759398206694,0.86197612,1040.7,1039.2,1.29586914]
[1759398206894,0.53605662,1040.6,1039.2,1.29586914]
[1759398207092,0.53605662,1040.5,1039.2,1.29586914]
[1759398207295,0.53605662,1040.4,1039.2,1.29586914]
[1759398207493,0.53605662,1040.3,1039.2,1.29586914]
[1759398207792,0.53605662,1040.2,1039.2,1.29586914]
[1759398208094,0.53605662,1040.1,1039.2,1.29586914]
[1759398208293,0.53605662,1040.0,1039.2,1.29586914]
[1759398208496,0.53605662,1039.9,1039.2,1.29586914]
[1759398208796,0.53605662,1039.8,1039.2,1.29586914]
[1759398208996,0.53605662,1039.7,1039.2,1.29586914]
[1759398209196,0.86197612,1040.7,1039.2,1.29586914]
[1759398209395,0.53604238,1040.6,1039.2,1.29586914]
[1759398209597,0.53604238,1040.5,1039.2,1.29586914]
[1759398209795,0.53604238,1040.4,1039.2,1.29586914]
[1759398209995,0.53604238,1040.3,1039.2,1.29586914]
[1759398210195,0.53604238,1040.2,1039.2,1.29586914]
[1759398210497,0.53604238,1040.1,1039.2,1.29586914]
[1759398210694,0.53604238,1040.0,1039.2,1.29586914]
[1759398210897,0.53604238,1039.9,1039.2,1.29586914]
[1759398211098,0.53604238,1039.8,1039.2,1.29586914]
[1759398211293,0.53604238,1039.7,1039.2,1.29586914]
[1759398211498,0.86197612,1040.5,1039.2,1.29586914]
[1759398211799,0.86197612,1040.3,1039.2,1.29586914]
[1759398212100,0.53604154,1040.2,1039.2,1.29586914]
[1759398212293,0.53604154,1040.1,1039.2,1.29586914]
[1759398212594,0.53604154,1040.0,1039.2,1.29586914]
[1759398212794,0.53604154,1039.9,1039.3,1.19771615]
[1759398212997,0.53604154,1039.8,1039.3,1.19771615]
[1759398213295,0.53604154,1039.7,1039.3,1.19771615]
[1759398213599,0.53604154,1039.6,1039.3,1.19771615]
[1759398213798,0.86197612,1040.3,1039.3,1.19771615]
[1759398213995,0.53611039,1040.2,1039.3,1.19771615]
[1759398214199,0.53611039,1040.1,1039.3,1.19771615]
[1759398214398,0.53611039,1040.0,1039.3,1.19771615]
[1759398214598,0.53611039,1039.9,1039.3,1.19771615]
[1759398214901,0.53611039,1039.8,1039.3,1.19771615]
[1759398215101,0.53611039,1039.7,1039.3,1.19771615]
[1759398215298,0.53611039,1039.6,1039.3,1.19771615]
[1759398215598,0.53611039,1039.5,1039.3,1.19771615]
[1759398215798,0.86197612,1040.3,1039.3,1.19771615]
[1759398215998,0.53607266,1040.2,1039.3,1.19771615]
[1759398216197,0.53607266,1040.1,1039.3,1.19771615]
[1759398216400,0.53607266,1040.0,1039.3,1.19771615]
[1759398216700,0.53607266,1039.9,1039.3,1.19771615]
[1759398216899,0.53607266,1039.8,1039.3,1.19771615]
[1759398217102,0.53607266,1039.7,1039.3,1.19771615]
[1759398217302,0.86197612,1040.3,1039.3,1.19771615]
[1759398217504,0.53594671,1040.2,1039.3,1.19771615]
[1759398217704,0.53594671,1040.1,1039.3,1.19771615]
[1759398217905,0.53594671,1040.0,1039.3,1.19771615]
[1759398218104,0.53594671,1039.9,1039.3,1.19771615]
[1759398218401,0.53594671,1039.8,1039.3,1.19771615]
[1759398218600,0.53594671,1039.7,1039.3,1.19771615]
[1759398218805,0.86197612,1040.4,1039.3,1.19771615]
[1759398219000,0.53594492,1040.3,1039.3,1.19771615]
[1759398219307,0.53594492,1040.2,1039.3,1.19771615]
[1759398219501,0.53594492,1040.1,1039.3,1.19771615]
[1759398219701,0.53594492,1040.0,1039.3,1.19771615]
[1759398219901,0.53594492,1039.9,1039.3,1.19771615]
[1759398220103,0.53594492,1039.8,1039.3,1.19771615]
[1759398220399,0.53594492,1039.7,1039.3,1.19771615]
[1759398220600,0.86197612,1040.4,1039.3,1.19771615]
[1759398220801,0.53592728,1040.3,1039.3,1.19771615]
[1759398221101,0.53592728,1040.2,1039.3,1.19771615]
[1759398221299,0.53592728,1040.1,1039.3,1.19771615]
[1759398221502,0.53592728,1040.0,1039.3,1.19771615]
[1759398221700,0.53592728,1039.9,1039.3,1.19771615]
[1759398221903,0.53592728,1039.8,1039.3,1.19771615]
[1759398222102,0.86197612,1040.4,1039.3,1.19771615]
[1759398222301,0.53590654,1040.3,1039.3,1.19771615]
[1759398222598,0.53590654,1040.2,1039.3,1.19771615]
[1759398222801,0.53590654,1040.1,1039.3,1.19771615]
[1759398223100,0.53590654,1040.0,1039.3,1.19771615]
[1759398223404,0.53590654,1039.9,1039.3,1.19771615]
[1759398223604,0.86197612,1041.2,1039.3,1.19771615]
[1759398223906,0.53555103,1041.1,1039.3,1.19771615]
[1759398224105,0.53555103,1041.0,1039.3,1.19771615]
[1759398224402,0.53555103,1040.9,1039.3,1.19771615]
[1759398224602,0.53555103,1040.8,1039.3,1.19771615]
[1759398224801,0.53555103,1040.7,1039.3,1.19771615]
[1759398225001,0.53536527,1040.6,1039.3,1.19771615]
[1759398225205,0.53536527,1040.5,1039.3,1.19771615]
[1759398225404,0.53536527,1040.4,1039.3,1.19771615]
[1759398225606,0.53536527,1040.3,1039.3,1.19771615]
[1759398225901,0.53536527,1040.2,1039.3,1.19771615]
[1759398226104,0.86197612,1040.8,1039.3,1.19771615]
[1759398226303,0.5349783,1040.7,1039.3,1.19771615]
[1759398226503,0.5349783,1040.6,1039.3,1.19771615]
[1759398226705,0.5349783,1040.5,1039.3,1.19771615]
[1759398226905,0.5349783,1040.4,1039.3,1.19771615]
[1759398227110,0.5349783,1040.3,1039.3,1.19771615]
[1759398227408,0.5349783,1040.2,1039.3,1.19771615]
[1759398227609,0.86197612,1041.0,1039.3,1.19771615]
[1759398227812,0.53479475,1040.9,1039.3,1.19771615]
[1759398228005,0.86197612,1041.0,1039.3,1.19771615]
[1759398228006,0.53479475,1040.8,1039.3,1.19771615]
[1759398228210,0.53479475,1040.7,1039.3,1.19771615]
[1759398228411,0.53479475,1040.6,1039.3,1.19771615]
[1759398228610,0.53479475,1040.5,1039.3,1.19771615]
[1759398228811,0.53479475,1040.4,1039.3,1.19771615]
[1759398229013,0.53479475,1040.3,1039.3,1.19771615]
[1759398229311,0.53479475,1040.2,1039.3,1.19771615]
[1759398229507,0.86197612,1041.1,1039.3,1.19771615]
[1759398229813,0.53451741,1041.0,1039.3,1.19771615]
[1759398230009,0.53451741,1040.9,1039.3,1.19771615]
[1759398230209,0.53451741,1040.8,1039.3,1.19771615]
[1759398230415,0.53451741,1040.7,1039.3,1.19771615]
[1759398230610,0.53451741,1040.6,1039.3,1.19771615]
[1759398230814,0.53451741,1040.5,1039.3,1.19771615]
[1759398231012,0.53451741,1040.4,1039.3,1.19771615]
[1759398231210,0.53451741,1040.3,1039.3,1.19771615]
[1759398231413,0.86197612,1041.1,1039.3,1.19771615]
[1759398231611,0.53430122,1041.0,1039.3,1.19771615]
[1759398231910,0.53430122,1040.9,1039.3,1.19771615]
[1759398232114,0.53430122,1040.8,1039.3,1.19771615]
[1759398232413,0.53430122,1040.7,1039.3,1.19771615]
[1759398232614,0.53430122,1040.6,1039.3,1.19771615]
[1759398232814,0.53430122,1040.5,1039.3,1.19771615]
[1759398233014,0.53430122,1040.4,1039.3,1.19771615]
[1759398233310,0.53430122,1040.3,1039.3,1.19771615]
[1759398233511,0.53421731,1040.2,1039.3,1.19771615]
[1759398233816,0.86197612,1040.9,1039.3,1.19771615]
[1759398234010,0.53421731,1040.8,1039.3,1.19771615]
[1759398234211,0.53421731,1040.7,1039.3,1.19771615]
[1759398234410,0.53421731,1040.6,1039.3,1.19771615]
[1759398234609,0.53421731,1040.5,1039.3,1.19771615]
[1759398234812,0.53421731,1040.4,1039.3,1.19771615]
[1759398235010,0.53421731,1040.3,1039.3,1.19771615]
[1759398235211,0.53421731,1040.2,1039.3,1.19771615]
[1759398235421,0.86197612,1040.8,1039.3,1.19771615]
[1759398235616,0.53423754,1040.7,1039.3,1.19771615]
[1759398235813,0.53423754,1040.6,1039.3,1.19771615]
[1759398236116,0.53423754,1040.5,1039.3,1.19771615]
[1759398236318,0.53423754,1040.4,1039.3,1.19771615]
[1759398236513,0.53423754,1040.3,1039.3,1.19771615]
[1759398236714,0.53423754,1040.2,1039.3,1.19771615]
[1759398236913,0.53423754,1040.1,1039.3,1.19771615]
[1759398237116,0.86197612,1040.8,1039.3,1.19771615]
[1759398237312,0.53419981,1040.7,1039.3,1.19771615]
[1759398237517,0.53419981,1040.6,1039.3,1.19771615]
[1759398237718,0.53419981,1040.5,1039.3,1.19771615]
[1759398238016,0.53419981,1040.4,1039.3,1.19771615]
[1759398238218,0.53419981,1040.3,1039.3,1.19771615]
[1759398238418,0.53419981,1040.2,1039.3,1.19771615]
[1759398238714,0.53419981,1040.1,1039.3,1.19771615]
[1759398238919,0.86197612,1040.9,1039.3,1.19771615]
[1759398239118,0.53416751,1040.8,1039.3,1.19771615]
[1759398239319,0.53416751,1040.7,1039.3,1.19771615]
[1759398239516,0.53416751,1040.6,1039.3,1.19771615]
[1759398239718,0.53416751,1040.5,1039.3,1.19771615]
[1759398239920,0.53416751,1040.4,1039.3,1.19771615]
[1759398240119,0.53416751,1040.3,1039.3,1.19771615]
[1759398240320,0.53416751,1040.2,1039.3,1.19771615]
[1759398240522,0.86197612,1040.9,1039.3,1.19771615]
[1759398240818,0.53414351,1040.8,1039.3,1.19771615]
[1759398241020,0.53414351,1040.7,1039.3,1.19771615]
[1759398241219,0.53414351,1040.6,1039.3,1.19771615]
[1759398241519,0.53414351,1040.5,1039.3,1.19771615]
[1759398241720,0.53414351,1040.4,1039.3,1.19771615]
[1759398242020,0.53414351,1040.3,1039.3,1.19771615]
[1759398242324,0.53414351,1040.2,1039.3,1.19771615]
[1759398242523,0.53414351,1040.1,1039.3,1.19771615]